[Event "Titled Tuesday Blitz September 27 Early 2022"]
[White "Weetik, Vjacheslav"]
[Black "Reyes, Narquingden"]
[WhiteFideId "4153472"]
[BlackFideId "5217334"]
[WhiteElo "2469"]
[BlackElo "2313"]
[Result "1-0"]
[Round "10"]
[TimeControl "180+1"]
[Date "2022.09.27"]
[WhiteClock "0:00:08"]
[BlackClock "0:00:03"]

1. d4 {[%clk 0:02:58]}  d5 {[%clk 0:02:59]} 2. Bf4 {[%clk 0:02:58]}  Nf6 {[%clk 0:02:59]} 3. e3 {[%clk 0:02:59]}  c5 {[%clk 0:02:59]} 4. c3 {[%clk 0:02:59]}  cxd4 {[%clk 0:03:00]} 5. cxd4 {[%clk 0:02:58]}  Nc6 {[%clk 0:03:00]} 6. Nc3 {[%clk 0:02:58]}  a6 {[%clk 0:02:59]} 7. Rc1 {[%clk 0:02:58]}  Bg4 {[%clk 0:02:54]} 8. f3 {[%clk 0:02:51]}  Bd7 {[%clk 0:02:53]} 9. Bd3 {[%clk 0:02:44]}  e6 {[%clk 0:02:53]} 10. g4 {[%clk 0:02:40]}  g6 {[%clk 0:02:45]} 11. Nge2 {[%clk 0:02:37]}  h5 {[%clk 0:02:45]} 12. g5 {[%clk 0:02:35]}  Nh7 {[%clk 0:02:44]} 13. h4 {[%clk 0:02:34]}  Be7 {[%clk 0:02:44]} 14. e4 {[%clk 0:02:31]}  dxe4 {[%clk 0:02:35]} 15. Bxe4 {[%clk 0:02:29]}  O-O {[%clk 0:02:33]} 16. d5 {[%clk 0:02:29]}  exd5 {[%clk 0:02:30]} 17. Nxd5 {[%clk 0:02:29]}  Be6 {[%clk 0:02:22]} 18. Nxe7+ {[%clk 0:02:21]}  Qxe7 {[%clk 0:02:10]} 19. Bd6 {[%clk 0:02:19]}  Qd8 {[%clk 0:02:03]} 20. Bxf8 {[%clk 0:02:16]}  Qxf8 {[%clk 0:02:03]} 21. Nf4 {[%clk 0:02:09]}  Bxa2 {[%clk 0:01:59]} 22. Kf2 {[%clk 0:02:00]}  Qb4 {[%clk 0:01:53]} 23. Kg3 {[%clk 0:01:54]}  Rd8 {[%clk 0:01:39]} 24. Qc2 {[%clk 0:01:49]}  Nf8 {[%clk 0:01:35]} 25. Rhd1 {[%clk 0:01:42]}  Bb3 {[%clk 0:01:33]} 26. Qe2 {[%clk 0:01:09]}  Bxd1 {[%clk 0:01:29]} 27. Rxd1 {[%clk 0:01:10]}  Rxd1 {[%clk 0:01:27]} 28. Qxd1 {[%clk 0:01:10]}  Qxb2 {[%clk 0:01:27]} 29. Qd6 {[%clk 0:01:04]}  Qe5 {[%clk 0:01:07]} 30. Qxe5 {[%clk 0:01:02]}  Nxe5 {[%clk 0:01:08]} 31. Bxb7 {[%clk 0:01:03]}  a5 {[%clk 0:01:08]} 32. Kf2 {[%clk 0:00:58]}  Ne6 {[%clk 0:01:00]} 33. Nxe6 {[%clk 0:00:39]}  fxe6 {[%clk 0:01:01]} 34. Ke3 {[%clk 0:00:40]}  Kf7 {[%clk 0:00:58]} 35. Kd4 {[%clk 0:00:40]}  Nd7 {[%clk 0:00:55]} 36. Kc4 {[%clk 0:00:35]}  e5 {[%clk 0:00:51]} 37. Kb5 {[%clk 0:00:31]}  Ke6 {[%clk 0:00:48]} 38. Be4 {[%clk 0:00:26]}  Kf7 {[%clk 0:00:37]} 39. Kxa5 {[%clk 0:00:25]}  Nf8 {[%clk 0:00:36]} 40. Kb6 {[%clk 0:00:24]}  Kg7 {[%clk 0:00:35]} 41. Kc7 {[%clk 0:00:22]}  Ne6+ {[%clk 0:00:35]} 42. Kd6 {[%clk 0:00:23]}  Nf4 {[%clk 0:00:36]} 43. Kxe5 {[%clk 0:00:23]}  Ng2 {[%clk 0:00:36]} 44. f4 {[%clk 0:00:22]}  Nxh4 {[%clk 0:00:37]} 45. Ke6 {[%clk 0:00:20]}  Kg8 {[%clk 0:00:33]} 46. Kf6 {[%clk 0:00:20]}  Kh7 {[%clk 0:00:33]} 47. Kf7 {[%clk 0:00:20]}  Kh8 {[%clk 0:00:32]} 48. Bxg6 {[%clk 0:00:10]}  Ng2 {[%clk 0:00:21]} 49. f5 {[%clk 0:00:09]}  Nf4 {[%clk 0:00:18]} 50. Bh7 {[%clk 0:00:05]}  Kxh7 {[%clk 0:00:15]} 51. g6+ {[%clk 0:00:06]}  Kh6 {[%clk 0:00:16]} 52. g7 {[%clk 0:00:06]}  Kg5 {[%clk 0:00:16]} 53. g8=Q+ {[%clk 0:00:07]}  Kxf5 {[%clk 0:00:17]} 54. Qh7+ {[%clk 0:00:07]}  Kg4 {[%clk 0:00:16]} 55. Qe4 {[%clk 0:00:06]}  h4 {[%clk 0:00:16]} 56. Kf6 {[%clk 0:00:06]}  h3 {[%clk 0:00:16]} 57. Ke5 {[%clk 0:00:07]}  h2 {[%clk 0:00:15]} 58. Qxf4+ {[%clk 0:00:07]}  Kh3 {[%clk 0:00:16]} 59. Qf3+ {[%clk 0:00:08]}  Kh4 {[%clk 0:00:16]} 60. Qg2 {[%clk 0:00:08]}  h1=Q {[%clk 0:00:02]} 61. Qxh1+ {[%clk 0:00:08]}  Kg4 {[%clk 0:00:03]} 62. Qg2+ {[%clk 0:00:08]}  Kh4 {[%clk 0:00:03]} 63. Kf5 {[%clk 0:00:08]} 1-0


[Site "https://www.chess.com"]

[Event "Titled Tuesday Blitz September 27 Early 2022"]
[White "Zaichenko, Daria"]
[Black "Mitrovic, Darko R"]
[WhiteFideId "4197453"]
[BlackFideId "927023"]
[WhiteElo "2039"]
[BlackElo "2150"]
[Result "1/2-1/2"]
[Round "10"]
[TimeControl "180+1"]
[Date "2022.09.27"]
[WhiteClock "0:00:55"]
[BlackClock "0:00:40"]

1. e4 {[%clk 0:02:56]}  e6 {[%clk 0:02:59]} 2. d4 {[%clk 0:02:55]}  d5 {[%clk 0:03:00]} 3. Bd3 {[%clk 0:02:56]}  Nf6 {[%clk 0:02:59]} 4. e5 {[%clk 0:02:55]}  Nfd7 {[%clk 0:02:59]} 5. f4 {[%clk 0:02:54]}  b6 {[%clk 0:02:59]} 6. c3 {[%clk 0:02:54]}  a5 {[%clk 0:02:57]} 7. Nf3 {[%clk 0:02:54]}  Ba6 {[%clk 0:02:57]} 8. Be3 {[%clk 0:02:48]}  Bxd3 {[%clk 0:02:53]} 9. Qxd3 {[%clk 0:02:48]}  g6 {[%clk 0:02:53]} 10. Nbd2 {[%clk 0:02:47]}  c5 {[%clk 0:02:53]} 11. a4 {[%clk 0:02:45]}  Qc8 {[%clk 0:02:51]} 12. b3 {[%clk 0:02:44]}  Qa6 {[%clk 0:02:46]} 13. c4 {[%clk 0:02:41]}  Nc6 {[%clk 0:02:40]} 14. Rd1 {[%clk 0:02:37]}  Nb4 {[%clk 0:02:39]} 15. Qb1 {[%clk 0:02:36]}  Be7 {[%clk 0:02:33]} 16. Kf2 {[%clk 0:02:35]}  O-O {[%clk 0:02:32]} 17. h4 {[%clk 0:02:35]}  cxd4 {[%clk 0:02:18]} 18. Bxd4 {[%clk 0:02:26]}  Bc5 {[%clk 0:02:05]} 19. h5 {[%clk 0:02:24]}  Bxd4+ {[%clk 0:01:58]} 20. Nxd4 {[%clk 0:02:24]}  Nc5 {[%clk 0:01:58]} 21. N2f3 {[%clk 0:02:16]}  dxc4 {[%clk 0:01:43]} 22. hxg6 {[%clk 0:02:10]}  fxg6 {[%clk 0:01:41]} 23. bxc4 {[%clk 0:01:43]}  Qxc4 {[%clk 0:01:39]} 24. Kg3 {[%clk 0:01:41]}  Ncd3 {[%clk 0:01:14]} 25. Rh4 {[%clk 0:01:25]}  Rad8 {[%clk 0:01:09]} 26. Rdh1 {[%clk 0:01:21]}  Rxd4 {[%clk 0:00:56]} 27. Rxh7 {[%clk 0:01:19]}  Rdxf4 {[%clk 0:00:49]} 28. Rh8+ {[%clk 0:01:18]}  Kf7 {[%clk 0:00:49]} 29. R1h7+ {[%clk 0:01:18]}  Ke8 {[%clk 0:00:48]} 30. Rxf8+ {[%clk 0:01:17]}  Kxf8 {[%clk 0:00:45]} 31. Qh1 {[%clk 0:00:55]}  Rg4+ {[%clk 0:00:43]} 32. Kh3 {[%clk 0:00:56]}  Nf2+ {[%clk 0:00:41]} 33. Kh2 {[%clk 0:00:54]}  Nxh1 {[%clk 0:00:41]} 34. Kxh1 {[%clk 0:00:55]}  Qf1+ {[%clk 0:00:40]} 35. Kh2 {[%clk 0:00:55]} 1/2-1/2


[Site "https://www.chess.com"]

[Event "Titled Tuesday Blitz September 27 Early 2022"]
[White "Zaksaite, Salomeja"]
[Black "Sanchez, Robert"]
[WhiteFideId "12801496"]
[BlackFideId "2034360"]
[WhiteElo "1953"]
[BlackElo "2379"]
[Result "1-0"]
[Round "10"]
[TimeControl "180+1"]
[Date "2022.09.27"]
[WhiteClock "0:00:05"]
[BlackClock "0:00:50"]

1. e4 {[%clk 0:02:54]}  d5 {[%clk 0:02:59]} 2. exd5 {[%clk 0:02:52]}  Qxd5 {[%clk 0:03:00]} 3. Nc3 {[%clk 0:02:51]}  Qe6+ {[%clk 0:03:00]} 4. Be2 {[%clk 0:02:48]}  Qg6 {[%clk 0:03:00]} 5. g3 {[%clk 0:02:46]}  Nc6 {[%clk 0:03:00]} 6. Nf3 {[%clk 0:02:46]}  Bd7 {[%clk 0:02:59]} 7. O-O {[%clk 0:02:45]}  O-O-O {[%clk 0:02:59]} 8. d4 {[%clk 0:02:43]}  e5 {[%clk 0:02:53]} 9. Bd3 {[%clk 0:02:37]}  Qh5 {[%clk 0:02:51]} 10. Nxe5 {[%clk 0:02:35]}  Qxd1 {[%clk 0:02:50]} 11. Rxd1 {[%clk 0:02:32]}  Nxe5 {[%clk 0:02:45]} 12. dxe5 {[%clk 0:02:32]}  Bg4 {[%clk 0:02:42]} 13. Re1 {[%clk 0:02:30]}  Bb4 {[%clk 0:02:40]} 14. Bg5 {[%clk 0:02:23]}  f6 {[%clk 0:02:38]} 15. exf6 {[%clk 0:02:22]}  Nxf6 {[%clk 0:02:38]} 16. Kg2 {[%clk 0:02:20]}  h5 {[%clk 0:02:36]} 17. h3 {[%clk 0:02:08]}  Bd7 {[%clk 0:02:34]} 18. Kh2 {[%clk 0:01:23]}  Bc6 {[%clk 0:02:27]} 19. Re6 {[%clk 0:01:04]}  Bc5 {[%clk 0:02:05]} 20. f4 {[%clk 0:00:54]}  Rdf8 {[%clk 0:01:41]} 21. Rae1 {[%clk 0:00:48]}  Ng4+ {[%clk 0:01:28]} 22. hxg4 {[%clk 0:00:47]}  hxg4+ {[%clk 0:01:29]} 23. Bh4 {[%clk 0:00:47]}  g5 {[%clk 0:01:29]} 24. Ne4 {[%clk 0:00:29]}  Bxe4 {[%clk 0:01:22]} 25. Bxe4 {[%clk 0:00:25]}  gxh4 {[%clk 0:01:22]} 26. f5 {[%clk 0:00:19]}  h3 {[%clk 0:01:08]} 27. Rg6 {[%clk 0:00:14]}  Rd8 {[%clk 0:01:05]} 28. Bd3 {[%clk 0:00:14]}  Rde8 {[%clk 0:00:55]} 29. Rxe8+ {[%clk 0:00:11]}  Rxe8 {[%clk 0:00:55]} 30. Rxg4 {[%clk 0:00:11]}  Rh8 {[%clk 0:00:53]} 31. Rg7 {[%clk 0:00:07]}  Kd8 {[%clk 0:00:51]} 32. f6 {[%clk 0:00:07]}  Ke8 {[%clk 0:00:50]} 33. Bg6+ {[%clk 0:00:06]}  Kf8 {[%clk 0:00:50]} 34. Rxc7 {[%clk 0:00:05]}  Bd6 {[%clk 0:00:50]} 35. Rc8# {[%clk 0:00:05]} 1-0


[Site "https://www.chess.com"]

[Event "Titled Tuesday Blitz September 27 Early 2022"]
[White "Zanette, Edgard Vinicius"]
[Black "Chernomordik, Pavel"]
[WhiteFideId "2109263"]
[BlackFideId "2804530"]
[WhiteElo "2182"]
[BlackElo "2217"]
[Result "1/2-1/2"]
[Round "10"]
[TimeControl "180+1"]
[Date "2022.09.27"]
[WhiteClock "0:01:22"]
[BlackClock "0:01:16"]

1. e4 {[%clk 0:03:00]}  g6 {[%clk 0:03:00]} 2. d4 {[%clk 0:03:00]}  Bg7 {[%clk 0:03:00]} 3. Nc3 {[%clk 0:02:59]}  d6 {[%clk 0:03:00]} 4. Be3 {[%clk 0:02:54]}  a6 {[%clk 0:03:00]} 5. Qd2 {[%clk 0:02:53]}  b5 {[%clk 0:03:00]} 6. a4 {[%clk 0:02:50]}  b4 {[%clk 0:02:58]} 7. Na2 {[%clk 0:02:50]}  a5 {[%clk 0:02:56]} 8. Nc1 {[%clk 0:02:49]}  Bb7 {[%clk 0:02:52]} 9. Bd3 {[%clk 0:02:46]}  Nd7 {[%clk 0:02:46]} 10. Nb3 {[%clk 0:02:44]}  Ngf6 {[%clk 0:02:41]} 11. f3 {[%clk 0:02:42]}  Rc8 {[%clk 0:02:32]} 12. Nxa5 {[%clk 0:02:24]}  Ba8 {[%clk 0:02:30]} 13. Qxb4 {[%clk 0:02:07]}  c5 {[%clk 0:02:29]} 14. Qd2 {[%clk 0:02:03]}  cxd4 {[%clk 0:02:02]} 15. Bxd4 {[%clk 0:02:01]}  Nxe4 {[%clk 0:02:00]} 16. Bxe4 {[%clk 0:01:58]}  Bxd4 {[%clk 0:01:48]} 17. Qxd4 {[%clk 0:01:57]}  Qxa5+ {[%clk 0:01:47]} 18. b4 {[%clk 0:01:56]}  Qe5 {[%clk 0:01:43]} 19. Qxe5 {[%clk 0:01:53]}  Nxe5 {[%clk 0:01:43]} 20. Bxa8 {[%clk 0:01:53]}  Rxa8 {[%clk 0:01:43]} 21. Ne2 {[%clk 0:01:49]}  Kd7 {[%clk 0:01:42]} 22. O-O {[%clk 0:01:44]}  Rhc8 {[%clk 0:01:41]} 23. c3 {[%clk 0:01:44]}  Nc4 {[%clk 0:01:38]} 24. Rfb1 {[%clk 0:01:41]}  e5 {[%clk 0:01:35]} 25. a5 {[%clk 0:01:27]}  d5 {[%clk 0:01:21]} 26. Rd1 {[%clk 0:01:26]}  Ke6 {[%clk 0:01:19]} 27. Kf2 {[%clk 0:01:22]}  f5 {[%clk 0:01:16]} 1/2-1/2


[Site "https://www.chess.com"]

[Event "Titled Tuesday Blitz September 27 Early 2022"]
[White "Zenin, Dmitry"]
[Black "Fiorito, Joaquin"]
[WhiteFideId "4127897"]
[BlackFideId "180173"]
[WhiteElo "2215"]
[BlackElo "1758"]
[Result "0-1"]
[Round "10"]
[TimeControl "180+1"]
[Date "2022.09.27"]
[WhiteClock "0:01:40"]
[BlackClock "0:01:18"]

1. d4 {[%clk 0:03:00]}  d5 {[%clk 0:02:59]} 2. c4 {[%clk 0:03:00]}  c6 {[%clk 0:03:00]} 3. cxd5 {[%clk 0:03:00]}  cxd5 {[%clk 0:03:00]} 4. Bf4 {[%clk 0:03:00]}  Nc6 {[%clk 0:02:59]} 5. e3 {[%clk 0:02:59]}  Nf6 {[%clk 0:02:59]} 6. Nc3 {[%clk 0:02:59]}  a6 {[%clk 0:03:00]} 7. Rc1 {[%clk 0:02:58]}  Bf5 {[%clk 0:02:57]} 8. Nf3 {[%clk 0:02:54]}  e6 {[%clk 0:02:57]} 9. Qb3 {[%clk 0:02:48]}  Na5 {[%clk 0:02:52]} 10. Qa4+ {[%clk 0:02:48]}  b5 {[%clk 0:02:52]} 11. Nxb5 {[%clk 0:02:47]}  axb5 {[%clk 0:02:33]} 12. Bxb5+ {[%clk 0:02:46]}  Nd7 {[%clk 0:02:32]} 13. Ne5 {[%clk 0:02:45]}  Nc6 {[%clk 0:02:27]} 14. Bxc6 {[%clk 0:02:41]}  Rxa4 {[%clk 0:02:25]} 15. Bxd7+ {[%clk 0:02:39]}  Ke7 {[%clk 0:02:14]} 16. Nc6+ {[%clk 0:02:39]}  Kxd7 {[%clk 0:02:13]} 17. Nxd8 {[%clk 0:02:39]}  Kxd8 {[%clk 0:02:09]} 18. a3 {[%clk 0:02:35]}  Ra7 {[%clk 0:02:04]} 19. O-O {[%clk 0:02:32]}  Kd7 {[%clk 0:02:04]} 20. Rc3 {[%clk 0:02:30]}  Bd6 {[%clk 0:02:04]} 21. Bxd6 {[%clk 0:02:29]}  Kxd6 {[%clk 0:02:05]} 22. Rfc1 {[%clk 0:02:27]}  Rb8 {[%clk 0:02:05]} 23. b4 {[%clk 0:02:27]}  Rba8 {[%clk 0:02:05]} 24. Ra1 {[%clk 0:02:17]}  Rc7 {[%clk 0:01:52]} 25. Rxc7 {[%clk 0:02:10]}  Kxc7 {[%clk 0:01:52]} 26. Rc1+ {[%clk 0:02:10]}  Kb6 {[%clk 0:01:53]} 27. Rc3 {[%clk 0:02:10]}  Ra7 {[%clk 0:01:48]} 28. f3 {[%clk 0:02:08]}  Rc7 {[%clk 0:01:48]} 29. Rc5 {[%clk 0:01:59]}  Bc2 {[%clk 0:01:33]} 30. Kf2 {[%clk 0:01:55]}  Ba4 {[%clk 0:01:26]} 31. Ke2 {[%clk 0:01:54]}  Bb5+ {[%clk 0:01:26]} 32. Kd2 {[%clk 0:01:54]}  Ra7 {[%clk 0:01:25]} 33. Rc3 {[%clk 0:01:54]}  Bc4 {[%clk 0:01:26]} 34. e4 {[%clk 0:01:49]}  Kb5 {[%clk 0:01:26]} 35. e5 {[%clk 0:01:49]}  h5 {[%clk 0:01:22]} 36. f4 {[%clk 0:01:47]}  Ra8 {[%clk 0:01:20]} 37. Rg3 {[%clk 0:01:45]}  g6 {[%clk 0:01:20]} 38. Kc2 {[%clk 0:01:43]}  Bf1 {[%clk 0:01:18]} 39. Kb2 {[%clk 0:01:40]}  Kc4 {[%clk 0:01:18]} 0-1


[Site "https://www.chess.com"]

[Event "Titled Tuesday Blitz September 27 Early 2022"]
[White "Acosta Villarroel, Lorner Jesus"]
[Black "Ismayil, Malak"]
[WhiteFideId "3906337"]
[BlackFideId "13412604"]
[WhiteElo "2325"]
[BlackElo "1879"]
[Result "1-0"]
[Round "11"]
[TimeControl "180+1"]
[Date "2022.09.27"]
[WhiteClock "0:00:03"]
[BlackClock "0:00:38"]

1. d4 {[%clk 0:03:00]}  Nf6 {[%clk 0:02:59]} 2. c4 {[%clk 0:02:59]}  g6 {[%clk 0:02:59]} 3. Nc3 {[%clk 0:02:59]}  Bg7 {[%clk 0:02:59]} 4. e4 {[%clk 0:02:59]}  O-O {[%clk 0:03:00]} 5. Nf3 {[%clk 0:02:59]}  d6 {[%clk 0:03:01]} 6. Be2 {[%clk 0:03:00]}  Nc6 {[%clk 0:03:01]} 7. O-O {[%clk 0:03:00]}  Bg4 {[%clk 0:03:02]} 8. d5 {[%clk 0:03:00]}  Nb8 {[%clk 0:03:01]} 9. Be3 {[%clk 0:02:55]}  a5 {[%clk 0:03:01]} 10. Nd4 {[%clk 0:02:48]}  Bxe2 {[%clk 0:02:59]} 11. Qxe2 {[%clk 0:02:49]}  Nbd7 {[%clk 0:03:00]} 12. f4 {[%clk 0:02:38]}  Nc5 {[%clk 0:03:00]} 13. Qc2 {[%clk 0:02:38]}  Nfd7 {[%clk 0:02:57]} 14. Rad1 {[%clk 0:02:33]}  e5 {[%clk 0:02:46]} 15. dxe6 {[%clk 0:02:00]}  fxe6 {[%clk 0:02:47]} 16. f5 {[%clk 0:01:43]}  gxf5 {[%clk 0:02:35]} 17. exf5 {[%clk 0:01:42]}  e5 {[%clk 0:02:36]} 18. Ne6 {[%clk 0:01:38]}  Nxe6 {[%clk 0:02:33]} 19. fxe6 {[%clk 0:01:39]}  Rxf1+ {[%clk 0:02:28]} 20. Rxf1 {[%clk 0:01:36]}  Nf8 {[%clk 0:02:29]} 21. Qf5 {[%clk 0:01:25]}  Qe7 {[%clk 0:02:05]} 22. Qf7+ {[%clk 0:00:18]}  Qxf7 {[%clk 0:02:00]} 23. Rxf7 {[%clk 0:00:15]}  Nxe6 {[%clk 0:01:59]} 24. Re7 {[%clk 0:00:15]}  Nd4 {[%clk 0:01:41]} 25. Rxc7 {[%clk 0:00:14]}  b6 {[%clk 0:01:35]} 26. Ne4 {[%clk 0:00:12]}  Rf8 {[%clk 0:01:33]} 27. h3 {[%clk 0:00:11]}  Nf5 {[%clk 0:01:29]} 28. Bf2 {[%clk 0:00:10]}  Rd8 {[%clk 0:01:25]} 29. b3 {[%clk 0:00:10]}  d5 {[%clk 0:01:20]} 30. cxd5 {[%clk 0:00:09]}  Rxd5 {[%clk 0:01:18]} 31. Bxb6 {[%clk 0:00:08]}  h6 {[%clk 0:00:46]} 32. Rc5 {[%clk 0:00:04]}  Rd1+ {[%clk 0:00:46]} 33. Kf2 {[%clk 0:00:04]}  Nd4 {[%clk 0:00:38]} 34. Rxa5 {[%clk 0:00:03]} 1-0


[Site "https://www.chess.com"]

[Event "Titled Tuesday Blitz September 27 Early 2022"]
[White "Alexikov, Alexander"]
[Black "Fernandez Hernandez, Gerardo"]
[WhiteFideId "14103958"]
[BlackFideId "2207400"]
[WhiteElo "2222"]
[BlackElo "2165"]
[Result "0-1"]
[Round "11"]
[TimeControl "180+1"]
[Date "2022.09.27"]
[WhiteClock "0:00:13"]
[BlackClock "0:00:19"]

1. e4 {[%clk 0:03:00]}  e6 {[%clk 0:03:00]} 2. d4 {[%clk 0:02:58]}  d5 {[%clk 0:03:00]} 3. Nc3 {[%clk 0:02:58]}  Nc6 {[%clk 0:03:00]} 4. Nf3 {[%clk 0:02:53]}  Nf6 {[%clk 0:03:00]} 5. e5 {[%clk 0:02:51]}  Ne4 {[%clk 0:02:59]} 6. Bb5 {[%clk 0:02:49]}  Bb4 {[%clk 0:02:51]} 7. Bd2 {[%clk 0:02:44]}  Nxd2 {[%clk 0:02:50]} 8. Qxd2 {[%clk 0:02:42]}  Bd7 {[%clk 0:02:48]} 9. Bd3 {[%clk 0:02:30]}  f6 {[%clk 0:02:42]} 10. exf6 {[%clk 0:02:24]}  Qxf6 {[%clk 0:02:40]} 11. a3 {[%clk 0:02:08]}  Bd6 {[%clk 0:02:33]} 12. O-O {[%clk 0:01:57]}  O-O {[%clk 0:02:26]} 13. Rae1 {[%clk 0:01:52]}  Rae8 {[%clk 0:02:18]} 14. Ne2 {[%clk 0:01:43]}  e5 {[%clk 0:02:05]} 15. dxe5 {[%clk 0:01:41]}  Nxe5 {[%clk 0:02:05]} 16. Ned4 {[%clk 0:01:21]}  Nxf3+ {[%clk 0:01:45]} 17. Nxf3 {[%clk 0:01:13]}  Bg4 {[%clk 0:01:42]} 18. Nd4 {[%clk 0:00:57]}  c5 {[%clk 0:00:50]} 19. Nb5 {[%clk 0:00:57]}  Bf4 {[%clk 0:00:36]} 20. Qc3 {[%clk 0:00:46]}  a6 {[%clk 0:00:27]} 21. Qxf6 {[%clk 0:00:40]}  gxf6 {[%clk 0:00:28]} 22. Nc3 {[%clk 0:00:38]}  c4 {[%clk 0:00:27]} 23. Rxe8 {[%clk 0:00:13]}  Rxe8 {[%clk 0:00:23]} 24. Nxd5 {[%clk 0:00:13]}  cxd3 {[%clk 0:00:20]} 25. Nxf4 {[%clk 0:00:13]}  d2 {[%clk 0:00:19]} 0-1


[Site "https://www.chess.com"]

[Event "Titled Tuesday Blitz September 27 Early 2022"]
[White "Avazkhonov, Alikhon"]
[Black "Poltorak, Sebastian"]
[WhiteFideId "14208504"]
[BlackFideId "1199498"]
[WhiteElo "1739"]
[BlackElo "2104"]
[Result "0-1"]
[Round "11"]
[TimeControl "180+1"]
[Date "2022.09.27"]
[WhiteClock "0:00:01"]
[BlackClock "0:01:01"]

1. d4 {[%clk 0:03:00]}  a6 {[%clk 0:02:59]} 2. e4 {[%clk 0:03:00]}  b5 {[%clk 0:02:58]} 3. Nf3 {[%clk 0:03:00]}  Bb7 {[%clk 0:02:58]} 4. Bd3 {[%clk 0:02:58]}  e6 {[%clk 0:02:56]} 5. O-O {[%clk 0:02:58]}  d5 {[%clk 0:02:52]} 6. Qe2 {[%clk 0:02:58]}  Nf6 {[%clk 0:02:48]} 7. e5 {[%clk 0:02:56]}  Nfd7 {[%clk 0:02:48]} 8. c3 {[%clk 0:02:56]}  c5 {[%clk 0:02:46]} 9. Nbd2 {[%clk 0:02:55]}  Nc6 {[%clk 0:02:46]} 10. Re1 {[%clk 0:02:53]}  Be7 {[%clk 0:02:45]} 11. Nf1 {[%clk 0:02:53]}  Qb6 {[%clk 0:02:42]} 12. Be3 {[%clk 0:02:48]}  h6 {[%clk 0:02:39]} 13. Ng3 {[%clk 0:02:44]}  O-O-O {[%clk 0:02:35]} 14. a3 {[%clk 0:02:27]}  c4 {[%clk 0:02:32]} 15. Bc2 {[%clk 0:02:27]}  Na5 {[%clk 0:02:28]} 16. Nd2 {[%clk 0:02:24]}  g5 {[%clk 0:02:25]} 17. b4 {[%clk 0:02:20]}  cxb3 {[%clk 0:02:24]} 18. Nxb3 {[%clk 0:02:20]}  Kb8 {[%clk 0:02:21]} 19. a4 {[%clk 0:02:18]}  Nxb3 {[%clk 0:02:19]} 20. Bxb3 {[%clk 0:02:19]}  b4 {[%clk 0:02:16]} 21. c4 {[%clk 0:02:11]}  dxc4 {[%clk 0:02:13]} 22. Qxc4 {[%clk 0:02:12]}  Rc8 {[%clk 0:02:06]} 23. Qe2 {[%clk 0:02:10]}  a5 {[%clk 0:02:06]} 24. Rec1 {[%clk 0:02:07]}  Rxc1+ {[%clk 0:02:01]} 25. Rxc1 {[%clk 0:02:08]}  Rc8 {[%clk 0:02:01]} 26. Rxc8+ {[%clk 0:02:07]}  Kxc8 {[%clk 0:02:00]} 27. Qc4+ {[%clk 0:02:05]}  Qc6 {[%clk 0:01:58]} 28. f3 {[%clk 0:01:08]}  Qxc4 {[%clk 0:01:57]} 29. Bxc4 {[%clk 0:01:08]}  Bc6 {[%clk 0:01:56]} 30. Bb3 {[%clk 0:01:07]}  Nb6 {[%clk 0:01:55]} 31. d5 {[%clk 0:00:35]}  Bxd5 {[%clk 0:01:47]} 32. Bxb6 {[%clk 0:00:29]}  Bxb3 {[%clk 0:01:47]} 33. Bxa5 {[%clk 0:00:29]}  Bc5+ {[%clk 0:01:47]} 34. Kf1 {[%clk 0:00:28]}  Bxa4 {[%clk 0:01:48]} 35. Ne4 {[%clk 0:00:28]}  Be7 {[%clk 0:01:42]} 36. Nd6+ {[%clk 0:00:27]}  Bxd6 {[%clk 0:01:41]} 37. exd6 {[%clk 0:00:28]}  b3 {[%clk 0:01:41]} 38. Bc3 {[%clk 0:00:27]}  Kd7 {[%clk 0:01:38]} 39. Be5 {[%clk 0:00:26]}  Kc6 {[%clk 0:01:35]} 40. g3 {[%clk 0:00:16]}  Kd5 {[%clk 0:01:32]} 41. f4 {[%clk 0:00:17]}  Ke4 {[%clk 0:01:07]} 42. Ke2 {[%clk 0:00:14]}  g4 {[%clk 0:01:07]} 43. Kd2 {[%clk 0:00:08]}  Kf3 {[%clk 0:01:07]} 44. Kc3 {[%clk 0:00:08]}  Kg2 {[%clk 0:01:07]} 45. f5 {[%clk 0:00:05]}  exf5 {[%clk 0:01:04]} 46. Kb4 {[%clk 0:00:03]}  Bd7 {[%clk 0:01:04]} 47. Kxb3 {[%clk 0:00:03]}  Kxh2 {[%clk 0:01:04]} 48. Bf4 {[%clk 0:00:04]}  h5 {[%clk 0:01:03]} 49. Kc4 {[%clk 0:00:03]}  Kh3 {[%clk 0:01:02]} 50. Kc5 {[%clk 0:00:03]}  h4 {[%clk 0:01:02]} 51. gxh4 {[%clk 0:00:03]}  Kxh4 {[%clk 0:01:03]} 52. Kb6 {[%clk 0:00:03]}  g3 {[%clk 0:01:04]} 53. Kc7 {[%clk 0:00:03]}  g2 {[%clk 0:01:04]} 54. Bh2 {[%clk 0:00:02]}  Be6 {[%clk 0:01:00]} 55. d7 {[%clk 0:00:02]}  Bxd7 {[%clk 0:01:00]} 56. Kxd7 {[%clk 0:00:03]}  f4 {[%clk 0:01:00]} 57. Kd6 {[%clk 0:00:02]}  f3 {[%clk 0:01:00]} 58. Bg1 {[%clk 0:00:02]}  Kg3 {[%clk 0:01:00]} 59. Ke5 {[%clk 0:00:02]}  f2 {[%clk 0:01:01]} 60. Bxf2+ {[%clk 0:00:01]}  Kxf2 {[%clk 0:01:01]} 0-1


[Site "https://www.chess.com"]